bitfinex/quotes_BTCUSD_20230906
["timestamp","ask_amount","ask_price","bid_price","bid_amount"]
[1694007394611,0.0247,25731.0,25729.0,1.23300084]
[1694007394833,0.23612249,25734.0,25730.0,4.00731]
[1694007394834,0.0247,25732.0,25730.0,4.00731]
[1694007395034,0.0247,25731.0,25730.0,4.27315527]
[1694007395332,0.0247,25731.0,25730.0,4.69395527]
[1694007395532,0.0247,25731.0,25730.0,4.54059895]
[1694007395756,0.0247,25732.0,25730.0,5.02006452]
[1694007395917,0.0247,25732.0,25731.0,0.1208]
[1694007396368,0.0267,25732.0,25731.0,3.229888]
[1694007397585,0.0247,25732.0,25731.0,3.249888]
[1694007397795,0.0267,25732.0,25731.0,3.249888]
[1694007397965,0.2775277,25732.0,25731.0,3.65753327]
[1694007398582,0.2775277,25732.0,25731.0,3.270888]
[1694007398783,0.0287,25732.0,25731.0,3.270888]
[1694007399965,0.0287,25732.0,25731.0,3.260888]
[1694007400979,0.0287,25732.0,25731.0,3.560888]
[1694007401178,0.0287,25732.0,25731.0,3.6537083]
[1694007401374,0.0287,25732.0,25731.0,4.17958403]
[1694007401597,0.0287,25732.0,25731.0,4.54645447]
[1694007401806,0.0287,25732.0,25731.0,4.17936227]
[1694007402060,0.0287,25732.0,25731.0,4.56600754]
[1694007402258,0.004,25732.0,25731.0,4.9330979]
[1694007402461,0.004,25732.0,25731.0,6.05385685]
[1694007402873,0.004,25732.0,25731.0,6.30198623]
[1694007403637,0.004,25732.0,25731.0,5.84229733]
[1694007404066,0.004,25732.0,25731.0,5.70306687]
[1694007406520,0.004,25732.0,25731.0,6.11216687]
[1694007406751,0.004,25732.0,25731.0,6.13516687]
[1694007407695,0.004,25732.0,25731.0,5.77999863]
[1694007408105,0.0087,25732.0,25731.0,5.77999863]
[1694007408300,0.0087,25732.0,25731.0,5.75699863]
[1694007410290,0.004,25732.0,25731.0,5.75699863]
[1694007410487,0.004,25732.0,25731.0,5.81699863]
[1694007410689,0.004,25732.0,25731.0,6.2036439]
[1694007410895,0.1197,25741.0,25740.0,0.06]
[1694007410896,0.0197,25741.0,25740.0,0.06]
[1694007411095,0.0197,25743.0,25740.0,0.06]
[1694007411096,0.0197,25743.0,25742.0,0.4691]
[1694007411278,0.0197,25743.0,25742.0,3.27392865]
[1694007411483,0.0197,25743.0,25742.0,5.9485676]
[1694007411689,0.0197,25743.0,25742.0,6.7255076]
[1694007411904,0.0197,25743.0,25742.0,6.57084949]
[1694007412303,0.24804453,25743.0,25742.0,4.64931895]
[1694007412506,0.0197,25743.0,25742.0,4.52851895]
[1694007412920,0.0197,25743.0,25742.0,4.58851895]
[1694007413480,0.0197,25743.0,25742.0,4.52851895]
[1694007414077,0.0197,25743.0,25742.0,4.60551895]
[1694007414078,0.0207,25743.0,25742.0,4.60551895]
[1694007414435,0.0217,25743.0,25742.0,3.50276]
[1694007414638,0.0217,25743.0,25742.0,2.66582]
[1694007417669,0.0217,25743.0,25742.0,1.58888]
[1694007419518,0.0217,25743.0,25742.0,2.36582]
[1694007419725,0.0217,25743.0,25742.0,2.6852754]
[1694007420148,0.0217,25743.0,25742.0,2.36582]
[1694007420979,0.0217,25743.0,25742.0,1.58888]
[1694007423457,0.0217,25743.0,25742.0,2.36582]
[1694007423662,0.0217,25743.0,25742.0,3.14276]
[1694007424682,0.0217,25743.0,25742.0,3.26356]
[1694007424886,0.0217,25743.0,25742.0,3.65020527]
[1694007426240,0.0197,25744.0,25742.0,3.74283001]
[1694007426466,0.0197,25744.0,25743.0,0.1208]
[1694007426672,0.0197,25744.0,25743.0,3.22844]
[1694007427315,0.0197,25744.0,25743.0,3.228866]
[1694007427541,0.0197,25744.0,25743.0,3.61551127]
[1694007427992,0.0207,25744.0,25743.0,3.61551127]
[1694007428761,0.0217,25744.0,25743.0,3.62351127]
[1694007429451,0.0217,25744.0,25743.0,4.7438816]
[1694007429674,0.0217,25744.0,25743.0,5.15650634]
[1694007429911,0.0207,25744.0,25743.0,5.29544325]
[1694007430109,0.0207,25744.0,25743.0,5.68208852]
[1694007430312,0.0207,25744.0,25743.0,5.68198989]
[1694007430715,0.0207,25744.0,25743.0,5.54311208]
[1694007430917,0.0207,25744.0,25743.0,5.68198989]
[1694007431333,0.0217,25744.0,25743.0,5.55211208]
[1694007431534,0.001,25744.0,25743.0,6.55330582]
[1694007431739,0.001,25744.0,25743.0,6.59959842]
[1694007432256,0.0197,25746.0,25743.0,6.80649703]
[1694007432632,0.0197,25746.0,25745.0,0.21337538]
[1694007432855,0.0197,25746.0,25745.0,4.44114171]
[1694007434802,0.0197,25746.0,25745.0,4.82778698]
[1694007434997,0.0197,25746.0,25745.0,4.83478698]
[1694007435419,0.0197,25746.0,25745.0,4.84278698]
[1694007435594,0.0197,25746.0,25745.0,5.22943225]
[1694007435999,0.0197,25746.0,25745.0,5.69853225]
[1694007436203,0.0197,25746.0,25745.0,6.61987229]
[1694007436403,0.0197,25746.0,25745.0,6.18777229]
[1694007436605,0.0197,25746.0,25745.0,6.18776941]
[1694007436808,0.0197,25746.0,25745.0,6.09519403]
[1694007437364,0.0197,25746.0,25745.0,5.20279834]
[1694007437642,0.0197,25746.0,25745.0,5.04954328]
[1694007437848,0.0197,25746.0,25745.0,5.64789237]
[1694007438583,0.0197,25746.0,25745.0,5.18840635]
[1694007438966,0.0197,25746.0,25745.0,5.55530612]
[1694007439174,0.0197,25746.0,25745.0,5.94195139]
[1694007439378,0.0197,25746.0,25745.0,6.0345624]
[1694007439797,0.0197,25746.0,25745.0,5.94195139]
[1694007440618,0.0197,25746.0,25745.0,6.03456467]
[1694007440823,0.0197,25746.0,25745.0,5.55530612]
[1694007441051,0.0197,25746.0,25745.0,5.64792887]
[1694007441427,0.0197,25746.0,25745.0,5.55530612]
[1694007441632,0.0197,25746.0,25745.0,5.38207996]
[1694007441839,0.0197,25746.0,25745.0,5.28946085]
[1694007442044,0.01928549,25746.0,25745.0,5.28946085]
[1694007442267,0.01928549,25746.0,25745.0,5.38208879]
[1694007442673,0.01928549,25746.0,25745.0,5.28946085]
[1694007443679,0.01928549,25746.0,25745.0,4.92260873]
[1694007443895,0.01928549,25746.0,25745.0,5.38210141]
[1694007444099,0.01928549,25746.0,25745.0,4.92260873]
[1694007444692,0.01928549,25746.0,25745.0,5.38209963]
[1694007445615,0.01928549,25746.0,25745.0,5.28946524]
[1694007445849,0.01928549,25746.0,25745.0,5.53153097]
[1694007446288,0.01928549,25746.0,25745.0,5.47461597]
[1694007446909,0.01928549,25746.0,25745.0,5.3357529]
[1694007448958,0.01928549,25746.0,25745.0,5.56721592]
[1694007449613,0.01928549,25746.0,25745.0,5.3357529]
[1694007449825,0.01928549,25746.0,25745.0,5.56721592]
[1694007450669,0.01928549,25746.0,25745.0,5.38206519]
[1694007452827,0.01928549,25746.0,25745.0,5.56766565]
[1694007453485,0.01928549,25746.0,25745.0,5.38206519]
[1694007453894,0.01928549,25746.0,25745.0,5.56773016]
[1694007454146,0.01928549,25746.0,25745.0,2.27466919]
[1694007454323,0.01928549,25746.0,25745.0,5.38206519]
[1694007454549,0.01928549,25746.0,25745.0,5.56772725]
[1694007454851,0.01928549,25746.0,25745.0,5.15553721]
[1694007455053,0.01928549,25746.0,25745.0,4.02119949]
[1694007455695,0.01928549,25746.0,25745.0,4.20693453]
[1694007456107,0.01928549,25746.0,25745.0,4.11334992]
[1694007456731,0.01928549,25746.0,25745.0,3.8818869]
[1694007457141,0.01928549,25746.0,25745.0,4.11428132]
[1694007457345,0.01928549,25746.0,25745.0,4.0026869]
[1694007457780,0.01928549,25746.0,25745.0,5.35531743]
[1694007458676,0.01928549,25746.0,25745.0,6.53770797]
[1694007458880,0.01928549,25746.0,25745.0,6.72361645]
[1694007459096,0.01928549,25746.0,25745.0,6.59770797]
[1694007459738,0.01928549,25746.0,25745.0,6.55121746]
[1694007460150,0.01928549,25746.0,25745.0,5.38746031]
[1694007460383,0.01928549,25746.0,25745.0,5.20155889]
[1694007460589,0.01928549,25746.0,25745.0,4.08132029]
[1694007460789,0.01928549,25746.0,25745.0,4.69564459]
[1694007461095,0.01928549,25746.0,25745.0,3.57535904]
[1694007461986,0.01928549,25746.0,25745.0,4.2222377]
[1694007462190,0.01928549,25746.0,25745.0,5.70899064]
[1694007462871,0.01928549,25746.0,25745.0,3.69615728]
[1694007463067,0.01928549,25746.0,25745.0,4.81639132]
[1694007463475,0.01928549,25746.0,25745.0,3.69615728]
[1694007464640,0.01928549,25746.0,25745.0,3.603196]
[1694007464841,0.01928549,25746.0,25745.0,3.422396]
[1694007467646,0.01928549,25746.0,25745.0,4.64082076]
[1694007467831,0.0197,25747.0,25746.0,0.0389103]
[1694007468033,0.0197,25747.0,25746.0,4.36273157]
[1694007468234,0.0197,25747.0,25746.0,4.38573157]
[1694007468855,0.0197,25747.0,25746.0,4.44573157]
[1694007469064,0.0197,25747.0,25746.0,4.83237684]
[1694007469895,0.0197,25751.0,25747.0,0.06]
[1694007470115,0.0197,25751.0,25750.0,0.1208]
[1694007470319,0.08046963,25751.0,25750.0,1.674198]
[1694007470736,0.17321606,25751.0,25750.0,4.004295]
[1694007470935,0.17321606,25751.0,25750.0,4.39094027]
[1694007471141,0.18121606,25751.0,25750.0,4.39094027]
[1694007471654,0.17321606,25751.0,25750.0,4.39094027]
[1694007472062,0.18121606,25751.0,25750.0,4.39194027]
[1694007472674,0.0277,25751.0,25750.0,3.83674717]
[1694007473136,0.0277,25751.0,25750.0,3.95754717]
[1694007473549,0.0437,25751.0,25750.0,3.95854717]
[1694007473961,0.0357,25751.0,25750.0,3.95754717]
[1694007474172,0.0427,25751.0,25750.0,3.95854717]
[1694007474584,0.0357,25751.0,25750.0,3.95754717]
[1694007475188,0.0377,25751.0,25750.0,5.19993771]
[1694007475391,0.0377,25751.0,25750.0,5.09083771]
[1694007475579,0.0217,25751.0,25750.0,5.08983771]
[1694007475790,0.0217,25751.0,25750.0,4.70319244]
[1694007476588,0.0237,25751.0,25750.0,4.70419244]
[1694007477114,0.0217,25751.0,25750.0,4.70319244]
[1694007477317,0.0197,25751.0,25750.0,4.71619244]
[1694007477692,0.0197,25751.0,25750.0,4.84632616]
[1694007478541,0.0197,25751.0,25750.0,4.37570787]
[1694007480130,0.0197,25751.0,25750.0,4.76235314]
[1694007482263,0.0197,25751.0,25750.0,5.17145314]
[1694007483281,0.0197,25751.0,25750.0,4.76235314]
[1694007484535,0.0197,25751.0,25750.0,4.37570787]
[1694007489096,0.0197,25751.0,25750.0,4.76235314]
[1694007492677,0.0197,25751.0,25750.0,5.17145314]
[1694007499760,0.0197,25751.0,25750.0,5.19445314]
[1694007500808,0.0197,25751.0,25750.0,5.17145314]
[1694007501017,0.0197,25751.0,25750.0,4.76235314]
[1694007502691,0.0197,25751.0,25750.0,4.82105298]
[1694007503274,0.0197,25751.0,25750.0,5.28001073]
[1694007503486,0.0197,25752.0,25751.0,0.4691]
[1694007503697,0.0197,25752.0,25751.0,4.08321727]
[1694007503926,0.0197,25752.0,25751.0,4.40621727]
[1694007504951,0.0197,25752.0,25751.0,4.41221727]
[1694007505310,0.0197,25752.0,25751.0,4.79886254]
[1694007505870,0.0197,25752.0,25751.0,4.36676254]
[1694007506490,0.0197,25752.0,25751.0,4.37076254]
[1694007507233,0.0197,25752.0,25751.0,3.98411727]
[1694007509833,0.0197,25752.0,25751.0,4.39321727]
[1694007511252,0.0197,25752.0,25751.0,4.41621727]
[1694007512073,0.0197,25752.0,25751.0,3.98411727]
[1694007519859,0.0197,25752.0,25751.0,3.86331727]
[1694007523420,0.29029827,25752.0,25751.0,3.86331727]
[1694007523619,0.3830447,25752.0,25751.0,3.86331727]
[1694007523827,0.3830447,25752.0,25751.0,3.476672]
[1694007524026,0.44380858,25752.0,25751.0,3.476672]
[1694007528202,0.44380858,25752.0,25751.0,3.416672]
[1694007528407,0.58292822,25752.0,25751.0,3.416672]
[1694007528643,0.49018179,25752.0,25751.0,3.416672]
[1694007528768,0.67567465,25752.0,25751.0,3.416672]
[1694007531200,0.40507638,25752.0,25751.0,3.416672]
[1694007531393,0.26595674,25752.0,25751.0,3.416672]
[1694007532012,0.47835941,25752.0,25751.0,3.416672]
[1694007533404,0.26595674,25752.0,25751.0,3.416672]
[1694007533605,0.50716538,25752.0,25751.0,3.416672]
[1694007535790,0.64704885,25752.0,25751.0,3.416672]
[1694007536373,0.50716538,25752.0,25751.0,3.416672]
[1694007536575,0.64704851,25752.0,25751.0,3.416672]
[1694007540401,0.46155565,25752.0,25751.0,3.416672]
[1694007542514,0.46155565,25752.0,25751.0,2.340004]
[1694007542515,0.22034701,25752.0,25751.0,2.340004]
[1694007542693,0.40583987,25752.0,25751.0,2.340004]
[1694007542913,0.50325491,25752.0,25751.0,2.340004]
[1694007543207,0.22034701,25752.0,25751.0,2.340004]
[1694007543409,0.51268556,25752.0,25751.0,2.340004]
[1694007544456,0.22034701,25752.0,25751.0,2.340004]
[1694007545023,0.47394359,25752.0,25751.0,2.340004]
[1694007547837,0.47394359,25752.0,25751.0,3.116672]
[1694007548192,0.22034701,25752.0,25751.0,3.116672]
[1694007551698,0.22034701,25752.0,25751.0,3.18690901]
[1694007551895,0.0197,25752.0,25751.0,4.05435428]
[1694007553791,0.0197,25752.0,25751.0,4.04835428]
[1694007554172,0.0197,25752.0,25751.0,3.97911727]
[1694007554722,0.0197,25752.0,25751.0,3.99111727]
[1694007555963,0.0197,25752.0,25751.0,3.98611727]
[1694007556340,0.0197,25752.0,25751.0,4.00011727]
[1694007564079,0.0197,25752.0,25751.0,4.05800334]
[1694007569305,0.0197,25752.0,25751.0,3.613472]
[1694007569506,0.0197,25752.0,25751.0,3.492672]
[1694007573370,0.0197,25752.0,25751.0,3.432672]
[1694007582840,0.1551,25755.0,25751.0,3.94011727]
[1694007583046,0.1551,25755.0,25752.0,0.3]
[1694007583246,0.1551,25755.0,25753.0,3.88304]
[1694007584976,0.1551,25755.0,25753.0,3.88404]
[1694007585602,0.1551,25755.0,25753.0,3.73083255]
[1694007586202,0.1551,25755.0,25753.0,4.11747782]
[1694007586432,0.1551,25755.0,25753.0,4.23827782]
[1694007586888,0.1571,25755.0,25753.0,4.23827782]
[1694007587225,0.1551,25755.0,25753.0,4.23827782]
[1694007587430,0.44615504,25755.0,25753.0,4.23827782]
[1694007587664,0.002,25755.0,25753.0,4.23927782]
[1694007587853,0.2578804,25755.0,25753.0,4.23927782]
[1694007588288,0.29455872,25754.0,25753.0,3.85263255]
[1694007588432,0.29455872,25754.0,25753.0,4.15263255]
[1694007588812,0.29455872,25754.0,25753.0,4.03183255]
[1694007589923,0.29455872,25754.0,25753.0,4.03083255]
[1694007590123,0.29655872,25754.0,25753.0,4.03083255]
[1694007590325,0.29655872,25754.0,25753.0,4.02983255]
[1694007591375,0.29655872,25754.0,25753.0,3.25322455]
[1694007591581,0.35731864,25754.0,25753.0,3.25322455]
[1694007592592,0.06275992,25754.0,25753.0,3.25322455]
[1694007592779,0.002,25754.0,25753.0,3.25322455]
[1694007593567,0.2255341,25754.0,25753.0,3.25322455]
[1694007593981,0.2255341,25754.0,25753.0,2.17661655]
[1694007594187,0.28629422,25754.0,25753.0,2.17661655]
[1694007595111,0.28629422,25754.0,25753.0,2.95322455]
[1694007597239,0.42602102,25754.0,25753.0,2.95322455]
[1694007598922,0.06276012,25754.0,25753.0,2.95322455]
[1694007599220,0.002,25754.0,25753.0,2.93358355]
[1694007599534,0.06275905,25754.0,25753.0,2.93358355]
[1694007600411,0.34822698,25754.0,25753.0,2.93358355]
[1694007609339,0.06275905,25754.0,25753.0,2.93358355]
[1694007612601,0.35314966,25754.0,25753.0,2.93358355]
[1694007614244,0.06275905,25754.0,25753.0,2.93358355]
[1694007615593,0.06275905,25754.0,25753.0,3.05438355]
[1694007622671,0.06275905,25754.0,25753.0,2.96484929]
[1694007623287,0.35774499,25754.0,25753.0,2.96484929]
[1694007623492,0.06275905,25754.0,25753.0,2.96484929]
[1694007632162,0.20248585,25754.0,25753.0,2.96484929]
[1694007644909,0.20205985,25754.0,25753.0,2.96484929]
[1694007645865,0.06233305,25754.0,25753.0,2.96484929]
[1694007648817,0.06233305,25754.0,25753.0,3.35149456]
[1694007649023,0.001574,25754.0,25753.0,3.77229456]
[1694007657138,0.49769158,25758.0,25753.0,3.77229456]
[1694007657340,0.49769158,25758.0,25756.0,0.1208]
[1694007657341,0.31106782,25758.0,25756.0,0.1208]
[1694007657541,0.31106782,25758.0,25757.0,1.552974]
[1694007657770,0.37181918,25758.0,25757.0,2.329461]
[1694007658185,0.37181918,25758.0,25757.0,3.105948]
[1694007658390,0.08045136,25758.0,25757.0,3.105948]
[1694007658602,0.0147,25758.0,25757.0,3.79259327]
[1694007658846,0.0147,25758.0,25757.0,3.405948]
[1694007659298,0.0147,25758.0,25757.0,3.21278772]
[1694007659473,0.0147,25758.0,25757.0,3.406948]
[1694007660130,0.0147,25758.0,25757.0,3.79359327]
[1694007660687,0.0147,25758.0,25757.0,3.628389]
[1694007662319,0.0147,25758.0,25757.0,4.13583427]
[1694007662637,0.0147,25758.0,25757.0,3.749189]
[1694007664613,0.0147,25758.0,25757.0,3.748189]
[1694007664813,0.0147,25758.0,25757.0,3.747189]
[1694007666266,0.0197,25760.0,25757.0,3.747189]
[1694007666629,0.0197,25760.0,25759.0,0.1808]
[1694007666844,0.0197,25760.0,25759.0,4.74958027]
[1694007667294,0.1515,25764.0,25759.0,5.13622554]
[1694007667497,0.1515,25764.0,25761.0,0.1208]
[1694007667703,0.1515,25764.0,25762.0,3.881685]
[1694007667905,0.1515,25764.0,25762.0,4.26833027]
[1694007668962,0.40064594,25764.0,25762.0,4.26933027]
[1694007669596,0.0197,25765.0,25763.0,0.4208]
[1694007669829,0.0197,25765.0,25764.0,4.00218]
[1694007670034,0.0197,25765.0,25764.0,4.30218]
[1694007671865,0.0197,25765.0,25764.0,4.69382527]
[1694007672064,0.0197,25765.0,25764.0,5.08047054]
[1694007672267,0.0197,25765.0,25764.0,4.69382527]
[1694007672471,0.0197,25765.0,25764.0,4.57302527]
[1694007672876,0.0197,25765.0,25764.0,4.57702527]
[1694007673081,0.0197,25765.0,25764.0,4.73237727]
[1694007673283,0.0197,25765.0,25764.0,4.85317727]
[1694007674502,0.0197,25765.0,25764.0,5.23982254]
[1694007675504,0.0197,25765.0,25764.0,5.08666862]
[1694007676544,0.0197,25765.0,25764.0,4.70002335]
[1694007677475,0.0197,25765.0,25764.0,4.78795902]
[1694007677824,0.0197,25765.0,25764.0,4.80195902]
[1694007678027,0.0197,25765.0,25764.0,4.79795902]
[1694007678450,0.0197,25765.0,25764.0,4.83295902]
[1694007678658,0.0197,25765.0,25764.0,5.00967733]
[1694007679071,0.0197,25765.0,25764.0,5.20908083]
[1694007679277,1e-08,25765.0,25764.0,5.57524141]
[1694007679482,0.2191,25768.0,25765.0,0.02]
[1694007679483,0.0005,25768.0,25765.0,0.02]
[1694007679690,0.0005,25768.0,25766.0,3.60697067]
[1694007679920,0.0005,25768.0,25767.0,0.80744527]
[1694007680126,0.0005,25768.0,25767.0,4.29883454]
[1694007680331,0.0005,25768.0,25767.0,4.82339594]
[1694007680531,0.0005,25768.0,25767.0,5.42114652]
[1694007680710,0.0005,25768.0,25767.0,5.32868512]
[1694007681344,0.0005,25768.0,25767.0,5.17556091]
[1694007681546,0.0005,25768.0,25767.0,5.36048372]
[1694007681754,0.0005,25768.0,25767.0,4.57406266]
[1694007682415,0.0005,25768.0,25767.0,4.43537056]
[1694007682623,0.0005,25768.0,25767.0,4.46037056]
[1694007683043,0.0005,25768.0,25767.0,4.48537056]
[1694007683253,0.0005,25768.0,25767.0,4.60617056]
[1694007683465,0.0005,25768.0,25767.0,4.83850973]
[1694007684080,0.28433593,25768.0,25767.0,4.33106446]
[1694007684289,0.28433593,25768.0,25767.0,4.23731797]
[1694007684491,0.28433593,25768.0,25767.0,4.09872529]
[1694007686139,0.28433593,25768.0,25767.0,4.36169044]
[1694007686344,0.28433593,25768.0,25767.0,5.48096126]
[1694007686757,0.28433593,25768.0,25767.0,5.29603845]
[1694007687332,0.0005,25768.0,25767.0,5.48080161]
[1694007687939,0.0005,25768.0,25767.0,5.29603845]
[1694007689191,0.21375218,25768.0,25767.0,5.29603845]
[1694007689400,0.21375218,25768.0,25767.0,5.68268372]
[1694007689401,0.0005,25768.0,25767.0,5.68268372]
[1694007690285,0.00312081,25769.0,25767.0,5.68268372]
[1694007690494,0.00312081,25769.0,25768.0,1.76308257]
[1694007690697,0.00312081,25769.0,25768.0,5.16770657]
[1694007691319,0.23137438,25769.0,25768.0,5.16770657]
[1694007691926,0.23137438,25769.0,25768.0,5.19270657]
[1694007692143,0.00312081,25769.0,25768.0,5.19270657]
[1694007692347,0.27076728,25769.0,25768.0,5.19270657]
[1694007692950,0.00312081,25769.0,25768.0,5.19270657]
[1694007693636,0.00312081,25769.0,25768.0,5.21770657]
[1694007693821,0.22377994,25769.0,25768.0,5.17155718]
[1694007694022,0.22377994,25769.0,25768.0,5.35631045]
[1694007694806,0.22377994,25769.0,25768.0,5.21770657]
[1694007695609,0.21877994,25769.0,25768.0,5.21770657]
[1694007697244,0.2849,25770.0,25768.0,5.60435184]
[1694007697445,0.2849,25770.0,25769.0,1.71701449]
[1694007697661,0.2849,25770.0,25769.0,4.91397534]
[1694007698000,0.2849,25770.0,25769.0,5.00627176]
[1694007698604,0.2849,25770.0,25769.0,5.02727176]
[1694007698785,0.2849,25770.0,25769.0,4.88858657]
[1694007698984,0.57017328,25770.0,25769.0,4.88858657]
[1694007699420,0.57017328,25770.0,25769.0,5.02730578]
[1694007699622,0.57017328,25770.0,25769.0,4.84255251]
[1694007700637,0.57017328,25770.0,25769.0,4.86555251]
[1694007701867,0.57017328,25770.0,25769.0,5.05030578]
[1694007702098,0.57017328,25770.0,25769.0,4.13546057]
[1694007702516,0.57017328,25770.0,25769.0,4.91158657]
[1694007703733,0.1641,25770.0,25769.0,4.91158657]
[1694007704501,0.41714378,25770.0,25769.0,4.91158657]
[1694007704941,0.53794378,25770.0,25769.0,4.91158657]
[1694007705797,0.53794378,25770.0,25769.0,1.94602092]
[1694007705999,0.53794378,25770.0,25769.0,2.58320857]
[1694007706442,0.53794378,25770.0,25769.0,4.91158657]
[1694007706782,0.2849,25770.0,25769.0,4.08968315]
[1694007707144,0.2849,25770.0,25769.0,3.58430782]
[1694007707362,0.52331076,25770.0,25769.0,3.58430782]
[1694007707766,0.52331076,25770.0,25769.0,3.49164882]
[1694007708546,0.52331076,25770.0,25769.0,2.372378]
[1694007708749,0.50786292,25770.0,25769.0,2.372378]
[1694007708910,0.50786292,25770.0,25769.0,3.4916951]
[1694007709311,0.50786292,25770.0,25769.0,2.7155691]
[1694007709970,0.50786292,25770.0,25769.0,3.4916951]
[1694007710602,0.50786292,25770.0,25769.0,2.372378]
[1694007711188,0.50786292,25770.0,25769.0,3.148504]
[1694007712770,0.50786292,25770.0,25769.0,3.45007741]
[1694007712771,0.14865216,25770.0,25769.0,3.45007741]
[1694007713001,0.14865216,25770.0,25769.0,3.241163]
[1694007713200,0.36133717,25770.0,25769.0,3.241163]
[1694007713403,0.21268501,25770.0,25769.0,3.241163]
[1694007713613,0.21268501,25770.0,25769.0,3.148504]
[1694007720234,0.21268501,25770.0,25769.0,3.18018273]
[1694007720571,0.23368743,25772.0,25769.0,3.18018273]
[1694007720792,0.28919492,25771.0,25769.0,3.18018273]
[1694007721005,0.2284719,25771.0,25769.0,3.18018273]
[1694007721219,0.29669944,25770.0,25769.0,3.18018273]
[1694007721427,0.29669944,25770.0,25769.0,3.15918273]
[1694007721641,0.29669944,25770.0,25769.0,3.13618273]
[1694007721642,0.35742364,25770.0,25769.0,3.13618273]
[1694007721854,0.35742364,25770.0,25769.0,3.14018273]
[1694007722090,0.35742364,25770.0,25769.0,3.14518273]
[1694007722326,0.35742364,25770.0,25769.0,3.113504]
[1694007722327,0.47822364,25770.0,25769.0,3.113504]
[1694007722569,0.47822364,25770.0,25769.0,3.108504]
[1694007722767,0.47822364,25770.0,25769.0,3.131504]
[1694007723159,0.35742364,25770.0,25769.0,3.108504]
[1694007723590,0.35742364,25770.0,25769.0,3.104504]
[1694007723591,0.45061107,25770.0,25769.0,3.104504]
[1694007723793,0.45061107,25770.0,25769.0,3.116504]
[1694007723794,0.35742364,25770.0,25769.0,3.116504]
[1694007724383,0.59039222,25770.0,25769.0,3.104504]
[1694007724803,0.59039222,25770.0,25769.0,3.116504]
[1694007725362,0.5437985,25770.0,25769.0,3.116504]
[1694007725774,0.5437985,25770.0,25769.0,3.130504]
[1694007726433,0.5437985,25770.0,25769.0,3.116504]
[1694007726640,0.5437985,25770.0,25769.0,3.130504]
[1694007728539,0.24709906,25770.0,25769.0,3.130504]
[1694007729585,0.15394289,25770.0,25769.0,3.33283731]
[1694007729796,0.09321869,25771.0,25769.0,3.71948258]
[1694007729997,0.09321869,25770.0,25769.0,3.71948258]
[1694007730225,0.09321869,25770.0,25769.0,3.51714927]
[1694007730618,0.09321869,25770.0,25769.0,3.50314927]
[1694007731182,0.23305675,25770.0,25769.0,3.116504]
[1694007731513,0.23304378,25770.0,25769.0,3.116504]
[1694007732126,0.23304378,25770.0,25769.0,3.130504]
[1694007732503,0.23304378,25770.0,25769.0,3.116504]
[1694007732704,0.52077493,25770.0,25769.0,3.104504]
[1694007732907,0.52077493,25770.0,25769.0,3.127504]
[1694007733305,0.42756921,25770.0,25769.0,3.127504]
[1694007733666,0.42756921,25770.0,25769.0,3.139504]
[1694007734280,0.09320099,25770.0,25769.0,3.139504]
[1694007735347,0.09320099,25770.0,25769.0,3.127504]
[1694007735808,0.09320099,25770.0,25769.0,3.148504]
[1694007743539,0.35662789,25770.0,25769.0,3.148504]
[1694007746564,0.34882789,25770.0,25769.0,3.148504]
[1694007749718,0.46398681,25770.0,25769.0,3.148504]
[1694007752379,0.6606453,25770.0,25769.0,1.596252]
[1694007752580,0.89361388,25770.0,25769.0,2.372378]
[1694007752791,0.6606453,25770.0,25769.0,2.372378]
[1694007753001,0.89361388,25770.0,25769.0,2.372378]
[1694007753208,0.6606453,25770.0,25769.0,2.372378]
[1694007753414,0.89361388,25770.0,25769.0,2.349378]
[1694007753546,0.6606453,25770.0,25769.0,2.349378]
[1694007753751,0.36789671,25770.0,25769.0,1.579252]
[1694007753979,0.60090036,25770.0,25769.0,1.579252]
[1694007754192,0.61740565,25770.0,25769.0,2.355378]
[1694007755193,0.36791182,25770.0,25769.0,1.579252]
[1694007755428,0.36791182,25770.0,25769.0,0.027]
[1694007755429,1.96670239,25770.0,25769.0,0.027]
[1694007755857,2.50980985,25770.0,25769.0,0.006]
[1694007756058,2.57874985,25770.0,25769.0,0.004]
[1694007756190,2.57820985,25770.0,25769.0,0.004]
[1694007756378,2.96623512,25770.0,25769.0,0.01]
[1694007756592,2.96623512,25770.0,25766.0,0.74792195]
[1694007756593,0.22996728,25769.0,25766.0,0.74792195]
[1694007756815,0.3537863,25767.0,25766.0,0.74792195]
[1694007757270,0.3537863,25767.0,25765.0,1.852461]
[1694007757579,0.1208,25766.0,25765.0,1.076246]
[1694007758001,0.1208,25766.0,25765.0,1.852492]
[1694007758255,0.1208,25766.0,25765.0,0.776246]
[1694007758463,0.3537863,25766.0,25763.0,1.55259]
[1694007758668,0.2329863,25765.0,25762.0,0.776321]
[1694007758869,0.1208,25763.0,25762.0,0.776326]
[1694007759074,0.1208,25763.0,25762.0,0.77363633]
[1694007759282,0.1208,25763.0,25761.0,0.82587535]
[1694007759500,0.1208,25762.0,25761.0,1.60223335]
[1694007759707,0.1208,25762.0,25761.0,2.22543343]
[1694007761120,0.1238,25762.0,25761.0,2.22543343]
[1694007762285,0.1238,25762.0,25761.0,0.776354]
[1694007762510,0.1238,25762.0,25761.0,2.329052]
[1694007764320,0.1288,25762.0,25761.0,2.329052]
[1694007764746,0.008,25762.0,25761.0,3.105419]
[1694007765688,0.005,25762.0,25761.0,3.105419]
[1694007766107,0.008,25762.0,25761.0,3.105419]
[1694007766881,0.2808,25764.0,25761.0,3.105419]
[1694007767307,0.001,25762.0,25761.0,3.122419]
[1694007768969,0.001,25762.0,25761.0,3.119419]
[1694007769407,0.2808,25764.0,25761.0,3.105419]
[1694007769992,0.2838,25764.0,25761.0,3.105419]
[1694007770755,0.2838,25764.0,25761.0,3.117419]
[1694007770915,0.2838,25764.0,25761.0,3.105419]
[1694007771317,0.2888,25764.0,25761.0,3.105419]
[1694007773879,0.28016903,25764.0,25761.0,3.105419]
[1694007774504,0.27977258,25764.0,25761.0,3.105419]
[1694007776444,0.15897258,25764.0,25761.0,3.105419]
[1694007779036,0.008,25764.0,25761.0,3.105419]
[1694007781399,0.008,25764.0,25763.0,0.1208]
[1694007781715,0.008,25764.0,25763.0,4.68898027]
[1694007782828,0.003,25764.0,25763.0,4.68898027]
[1694007784039,0.20484431,25769.0,25763.0,4.68898027]